fUST/lending_fUST_20260107
["ID","MTS","AMOUNT","RATE_DAILY","PERIOD"]
[400688435,1767779457299,-500.0,0.00027945,2]
[400688436,1767779457308,-1016.281206,0.00027945,7]
[400688437,1767779457317,-500.0,0.00027945,2]
[400688438,1767779457327,-353.65554506,0.00027945,2]
[400688439,1767779457335,-500.0,0.00027945,2]
[400688440,1767779457345,-500.0,0.00027945,2]
[400688441,1767779457354,-500.0,0.00027945,2]
[400688442,1767779457363,-500.0,0.00027945,2]
[400688443,1767779457372,-500.0,0.00027945,2]
[400688444,1767779457381,-151.0,0.00027945,7]
[400688446,1767779457391,-232.576988,0.00027945,7]
[400688448,1767779457401,-500.0,0.00027945,2]
[400688450,1767779457410,-500.0,0.00027945,2]
[400688452,1767779457419,-151.0,0.00027945,7]
[400688454,1767779457429,-500.0,0.00027945,2]
[400688456,1767779457438,-189.48798872,0.00027945,2]
[400688458,1767779457447,-500.0,0.00027945,2]
[400688460,1767779457456,-500.0,0.00027945,2]
[400688462,1767779457465,-500.0,0.00027945,2]
[400688464,1767779457474,-500.0,0.00027945,2]
[400688466,1767779457483,-151.0,0.00027945,7]
[400688469,1767779457494,-500.0,0.00027945,2]
[400688471,1767779457503,-280.11508325,0.00027945,2]
[400688473,1767779457512,-300.0,0.00027945,7]
[400688475,1767779457522,-164.70126,0.00027945,7]
[400688476,1767779457531,-500.0,0.00027945,2]
[400688479,1767779457541,-500.0,0.00027945,2]
[400688481,1767779457550,-500.0,0.00027945,2]
[400688483,1767779457559,-300.0,0.00027945,7]
[400688485,1767779457572,-300.0,0.00027945,7]
[400688487,1767779457581,-151.0,0.00027945,7]
[400688489,1767779457591,-500.0,0.00027945,2]
[400688491,1767779457599,-412.83151181,0.00027945,2]
[400688493,1767779457610,-300.0,0.00027945,7]
[400688495,1767779457619,-500.0,0.00027945,2]
[400688497,1767779457628,-264.29186076,0.00027945,2]
[400688499,1767779457637,-500.0,0.00027945,2]
[400688501,1767779457647,-500.0,0.00027945,2]
[400688503,1767779457656,-151.0,0.00027945,7]
[400688504,1767779457665,-193.081788,0.00027945,7]
[400688507,1767779457675,-151.0,0.00027945,7]
[400688508,1767779457684,-151.0,0.00027945,7]
[400688510,1767779457692,-151.0,0.00027945,7]
[400688512,1767779457702,-151.0,0.00027945,7]
[400688519,1767779457753,-606.89944653,0.00027945,2]
[400688521,1767779457763,-151.0,0.00027945,7]
[400688523,1767779457772,-500.0,0.00027945,2]
[400688525,1767779457781,-151.0,0.00027945,2]
[400688527,1767779457790,-500.0,0.00027945,2]
[400688529,1767779457798,-500.0,0.00027945,2]
[400688531,1767779457807,-500.0,0.00027945,2]
[400688532,1767779457816,-151.0,0.00027945,7]
[400688534,1767779457826,-500.0,0.00027945,2]
[400688536,1767779457835,-500.0,0.00027945,2]
[400688539,1767779457845,-690.11,0.00027945,2]
[400688541,1767779457853,-836.4,0.00027945,2]
[400688543,1767779457863,-500.0,0.00027945,2]
[400688545,1767779457873,-379.66,0.00027945,2]
[400688547,1767779457882,-500.0,0.00027945,2]
[400688549,1767779457891,-500.0,0.00027945,2]
[400688551,1767779457900,-500.0,0.00027945,2]
[400688553,1767779457910,-500.0,0.00027945,2]
[400688554,1767779457919,-500.0,0.00027945,2]
[400688557,1767779457928,-500.0,0.00027945,2]
[400688558,1767779457937,-612.995739,0.00027945,7]
[400688560,1767779457946,-500.0,0.00027945,2]
[400688562,1767779457957,-612.995739,0.00027945,7]
[400688565,1767779457968,-612.995739,0.00027945,7]
[400688566,1767779457977,-500.0,0.00027945,2]
[400688568,1767779457986,-157.31286406,0.00027945,2]
[400688570,1767779457996,-612.995739,0.00027945,7]
[400688573,1767779458007,-500.0,0.00027945,2]
[400688574,1767779458016,-151.0,0.00027945,7]
[400688576,1767779458027,-500.0,0.00027945,2]
[400688578,1767779458036,-500.0,0.00027945,2]
[400688580,1767779458045,-500.0,0.00027945,2]
[400688582,1767779458054,-595.34826852,0.00027945,2]
[400688584,1767779458063,-151.0,0.00027945,7]
[400688586,1767779458073,-500.0,0.00027945,2]
[400688588,1767779458082,-500.0,0.00027945,2]
[400688590,1767779458092,-500.0,0.00027945,2]
[400688593,1767779458102,-500.0,0.00027945,2]
[400688595,1767779458112,-500.0,0.00027945,2]
[400688597,1767779458121,-500.0,0.00027945,2]
[400688599,1767779458131,-500.0,0.00027945,2]
[400688601,1767779458140,-500.0,0.00027945,2]
[400688603,1767779458150,-500.0,0.00027945,2]
[400688605,1767779458160,-500.0,0.00027945,2]
[400688607,1767779458170,-567.03939985,0.00027945,2]
[400688609,1767779458179,-633.90661067,0.00027945,2]
[400688611,1767779458189,-520.98274891,0.00027945,2]
[400688613,1767779458198,-500.0,0.00027945,2]
[400688615,1767779458207,-500.0,0.00027945,2]
[400688617,1767779458217,-3088.57,0.00027945,2]
[400688619,1767779458226,-494.72479422,0.00027945,2]
[400688621,1767779458236,-500.0,0.00027945,2]
[400688623,1767779458245,-500.0,0.00027945,2]
[400688625,1767779458255,-215.570059,0.00027945,7]
[400688627,1767779458264,-206.665209,0.00027945,7]
[400688629,1767779458273,-215.570059,0.00027945,7]
[400688631,1767779458283,-226.840481,0.00027945,7]
[400688633,1767779458291,-206.665209,0.00027945,7]
[400688635,1767779458300,-500.0,0.00027945,2]
[400688637,1767779458309,-500.0,0.00027945,2]
[400688639,1767779458318,-215.570059,0.00027945,7]
[400688641,1767779458327,-206.665209,0.00027945,7]
[400688642,1767779458336,-634.815792,0.00027945,7]
[400688644,1767779458345,-215.570059,0.00027945,7]
[400688646,1767779458355,-206.665209,0.00027945,7]
[400688649,1767779458364,-500.0,0.00027945,2]
[400688651,1767779458374,-151.0,0.00027945,7]
[400688653,1767779458384,-634.815792,0.00027945,7]
[400688654,1767779458393,-500.0,0.00027945,2]
[400688657,1767779458403,-151.0,0.00027945,7]
[400688659,1767779458413,-634.815792,0.00027945,7]
[400688661,1767779458423,-500.0,0.00027945,2]
[400688663,1767779458433,-634.815792,0.00027945,7]
[400688665,1767779458445,-797.84,0.00027945,2]
[400688667,1767779458454,-500.0,0.00027945,2]
[400688669,1767779458463,-500.0,0.00027945,2]
[400688671,1767779458472,-500.0,0.00027945,2]
[400688673,1767779458482,-151.0,0.00027945,7]
[400688675,1767779458491,-322.62576743,0.00027945,2]
[400688677,1767779458500,-151.0,0.00027945,7]
[400688679,1767779458510,-151.0,0.00027945,7]
[400688681,1767779458519,-500.0,0.00027945,2]
[400688683,1767779458529,-500.0,0.00027945,2]
[400688685,1767779458538,-151.0,0.00027945,7]
[400688687,1767779458552,-151.0,0.00027945,7]
[400688689,1767779458562,-532.23600239,0.00027945,2]
[400688691,1767779458571,-500.0,0.00027945,2]
[400688693,1767779458581,-151.0,0.00027945,7]
[400688695,1767779458591,-151.0,0.00027945,7]
[400688698,1767779458600,-500.0,0.00027945,2]
[400688700,1767779458610,-164.004799,0.00027945,7]
[400688702,1767779458619,-500.0,0.00027945,2]
[400688704,1767779458629,-500.0,0.00027945,2]
[400688706,1767779458639,-151.0,0.00027945,7]
[400688708,1767779458649,-590.37821897,0.00027945,2]
[400688710,1767779458658,-500.0,0.00027945,2]
[400688712,1767779458667,-253.567754,0.00027945,7]
[400688714,1767779458677,-725.03,0.00027945,2]
[400688716,1767779458686,-500.0,0.00027945,2]
[400688717,1767779458696,-500.0,0.00027945,2]
[400688719,1767779458705,-253.567754,0.00027945,7]
[400688721,1767779458715,-750.0,0.00027945,5]
[400688724,1767779458724,-1000.0,0.00027945,5]
[400688726,1767779458735,-250.0,0.00027945,5]
[400688728,1767779458743,-858.95752258,0.00027996,5]
[400688730,1767779458752,-385.09,0.00028,2]
[400688732,1767779458762,-1041.66666667,0.00028,7]
[400688734,1767779458771,-230.7,0.00028007,3]
[400688736,1767779458780,-5000.0,0.00028038,2]
[400688738,1767779458789,-1300.0,0.00028078,7]
[400688740,1767779458798,-3435.83009031,0.00028126,5]
[400688742,1767779458807,-500.0,0.00028177,7]
[400688744,1767779458817,-2401.52341827,0.00028211,2]
[400688746,1767779458826,-500.0,0.00028219,2]
[400688748,1767779458835,-512.04920127,0.00028219,2]
[400688750,1767779458845,-500.0,0.00028219,2]
[400688752,1767779458855,-500.0,0.00028219,2]
[400688754,1767779458864,-500.0,0.00028219,2]
[400688756,1767779458873,-500.0,0.00028219,2]
[400688758,1767779458883,-320.99194648,0.00028219,2]
[400688760,1767779458892,-197.42053416,0.00028219,2]
[400688762,1767779458901,-494.3068847,0.00028219,2]
[400688764,1767779458911,-500.0,0.00028219,2]
[400688766,1767779458920,-278.02017742,0.00028219,2]
[400688768,1767779458930,-524.2646963,0.00028219,2]
[400688770,1767779458939,-500.0,0.00028219,2]
[400688772,1767779458948,-500.0,0.00028219,2]
[400688774,1767779458958,-500.0,0.00028219,2]
[400688776,1767779458968,-500.0,0.00028219,2]
[400688778,1767779458981,-500.0,0.00028219,2]
[400688780,1767779458990,-157.53465231,0.00028219,2]
[400688782,1767779458999,-500.0,0.00028219,2]
[400688784,1767779459009,-500.0,0.00028219,2]
[400688786,1767779459018,-500.0,0.00028219,2]
[400688788,1767779459027,-1000.0,0.00028219,2]
[400688790,1767779459036,-500.0,0.00028219,2]
[400688792,1767779459047,-151.0,0.00028219,7]
[400688794,1767779459056,-500.0,0.00028219,2]
[400688796,1767779459065,-500.0,0.00028219,2]
[400688798,1767779459074,-500.0,0.00028219,2]
[400688800,1767779459083,-500.0,0.00028219,2]
[400688802,1767779459093,-500.0,0.00028219,2]
[400688804,1767779459102,-581.31244025,0.00028219,2]
[400688806,1767779459111,-640.87179641,0.00028219,2]
[400688808,1767779459120,-798.94,0.00028219,2]
[400688810,1767779459130,-561.94755424,0.00028219,2]
[400688812,1767779459140,-500.0,0.00028219,2]
[400688814,1767779459150,-500.0,0.00028219,2]
[400688817,1767779459160,-500.0,0.00028219,2]
[400688818,1767779459169,-500.0,0.00028219,2]
[400688821,1767779459179,-181.78079938,0.00028219,2]
[400688822,1767779459188,-463.66455521,0.00028219,2]
[400688825,1767779459197,-500.0,0.00028219,2]
[400688827,1767779459207,-500.0,0.00028219,2]
[400688829,1767779459216,-178.97567545,0.00028219,2]
[400688831,1767779459226,-373.36493827,0.00028219,2]
[400688833,1767779459239,-500.0,0.00028219,2]
[400688835,1767779459249,-500.0,0.00028219,2]
[400688837,1767779459259,-500.0,0.00028219,2]
[400688839,1767779459268,-500.0,0.00028219,2]
[400688841,1767779459278,-500.0,0.00028219,2]
[400688843,1767779459287,-1000.0,0.00028219,2]
[400688845,1767779459297,-500.0,0.00028219,2]
[400688847,1767779459310,-596.51574051,0.00028219,2]
[400688849,1767779459320,-219.45873194,0.00028219,2]
[400688851,1767779459330,-500.0,0.00028219,2]
[400688853,1767779459340,-500.0,0.00028219,2]
[400688855,1767779459350,-328.70746168,0.00028219,2]
[400688857,1767779459360,-563.71974159,0.00028219,2]
[400688859,1767779459370,-576.3,0.00028219,2]
[400688861,1767779459380,-500.0,0.00028219,2]
[400688863,1767779459390,-500.0,0.00028219,2]
[400688865,1767779459400,-327.42862214,0.00028219,2]
[400688867,1767779459410,-500.0,0.00028219,2]
[400688869,1767779459420,-500.0,0.00028219,2]
[400688871,1767779459430,-500.0,0.00028219,2]
[400688873,1767779459440,-500.0,0.00028219,2]
[400688875,1767779459450,-200.0,0.00028219,2]
[400688877,1767779459463,-500.0,0.00028219,2]
[400688879,1767779459473,-500.0,0.00028219,2]
[400688881,1767779459483,-500.0,0.00028219,2]
[400688884,1767779459493,-500.0,0.00028219,2]
[400688886,1767779459502,-500.0,0.00028219,2]
[400688887,1767779459511,-500.0,0.00028219,2]
[400688889,1767779459520,-324.59959195,0.00028219,2]
[400688891,1767779459529,-500.0,0.00028219,2]
[400688894,1767779459538,-500.0,0.00028219,2]
[400688896,1767779459548,-170.02326745,0.00028219,2]
[400688898,1767779459557,-500.0,0.00028219,2]
[400688900,1767779459567,-500.0,0.00028219,2]
[400688902,1767779459576,-756.53,0.00028219,2]
[400688904,1767779459586,-181.29761316,0.00028219,2]
[400688906,1767779459596,-500.0,0.00028219,2]
[400688908,1767779459606,-500.0,0.00028219,2]
[400688910,1767779459617,-500.0,0.00028219,2]
[400688912,1767779459627,-500.0,0.00028219,2]
[400688914,1767779459638,-500.0,0.00028219,2]
[400688916,1767779459648,-3498.10796226,0.00028219,2]
[400688918,1767779459658,-500.0,0.00028219,2]
[400688920,1767779459668,-500.0,0.00028219,2]
[400688922,1767779459678,-500.0,0.00028219,2]
[400688924,1767779459688,-500.0,0.00028219,2]
[400688926,1767779459698,-258.34773752,0.00028219,2]
[400688928,1767779459708,-500.0,0.00028219,2]
[400688930,1767779459718,-500.0,0.00028219,2]
[400688932,1767779459728,-558.55,0.00028219,2]
[400688934,1767779459738,-500.0,0.00028219,2]
[400688936,1767779459749,-347.45828646,0.00028219,2]
[400688938,1767779459759,-500.0,0.00028219,2]
[400688940,1767779459770,-3797.4,0.00028219,2]
[400688942,1767779459780,-500.0,0.00028219,2]
[400688944,1767779459790,-500.0,0.00028219,2]
[400688946,1767779459800,-500.0,0.00028219,2]
[400688948,1767779459809,-836.74,0.00028219,2]
[400688950,1767779459818,-242.04293168,0.00028219,2]
[400688952,1767779459828,-604.5691419,0.00028219,2]
[400688954,1767779459837,-500.0,0.00028219,2]
[400688956,1767779459847,-500.0,0.00028219,2]
[400688958,1767779459856,-500.0,0.00028219,2]
[400688960,1767779459865,-500.0,0.00028219,2]
[400688962,1767779459882,-500.0,0.00028219,2]
[400688964,1767779459894,-500.0,0.00028219,2]
[400688966,1767779459904,-500.0,0.00028219,2]
[400688968,1767779459914,-500.0,0.00028219,2]
[400688970,1767779459924,-576.51854464,0.00028219,2]
[400688973,1767779459937,-500.0,0.00028219,2]
[400688975,1767779459947,-500.0,0.00028219,2]
[400688977,1767779459960,-500.0,0.00028219,2]
[400688979,1767779459971,-500.0,0.00028219,2]
[400688981,1767779459980,-500.0,0.00028219,2]
[400688983,1767779459990,-678.0,0.00028219,2]
[400688985,1767779460001,-500.0,0.00028219,2]
[400688987,1767779460011,-574.24165646,0.00028219,2]
[400688989,1767779460020,-500.0,0.00028219,2]
[400688991,1767779460031,-500.0,0.00028219,2]
[400688993,1767779460041,-345.3181151,0.00028219,2]
[400688995,1767779460051,-528.5328738,0.00028219,2]
[400688997,1767779460062,-453.30260385,0.00028219,2]
[400688999,1767779460072,-500.0,0.00028219,2]
[400689001,1767779460082,-246.34601962,0.00028219,2]
[400689003,1767779460096,-956.27,0.00028219,2]
[400689005,1767779460106,-2251.87,0.00028219,2]
[400689007,1767779460116,-500.0,0.00028219,2]
[400689009,1767779460126,-500.0,0.00028219,2]
[400689011,1767779460136,-178.56719036,0.00028219,2]
[400689014,1767779460148,-500.0,0.00028219,2]
[400689016,1767779460160,-500.0,0.00028219,2]
[400689018,1767779460170,-500.0,0.00028219,2]
[400689020,1767779460182,-500.0,0.00028219,2]
[400689022,1767779460192,-500.0,0.00028219,2]
[400689024,1767779460203,-500.0,0.00028219,2]
[400689026,1767779460213,-535.75,0.00028219,2]
[400689028,1767779460223,-14665.45,0.00028219,2]
[400689030,1767779460233,-500.0,0.00028219,2]
[400689032,1767779460243,-500.0,0.00028219,2]
[400689034,1767779460252,-500.0,0.00028219,2]
[400689036,1767779460263,-437.57170781,0.00028219,2]
[400689038,1767779460273,-500.0,0.00028219,2]
[400689040,1767779460283,-500.0,0.00028219,2]
[400689042,1767779460292,-443.89076946,0.00028219,2]
[400689044,1767779460306,-500.0,0.00028219,2]
[400689047,1767779460317,-909.99,0.00028219,2]
[400689049,1767779460327,-500.0,0.00028219,2]
[400689051,1767779460337,-500.0,0.00028219,2]
[400689053,1767779460347,-235.37622654,0.00028219,2]
[400689055,1767779460357,-500.0,0.00028219,2]
[400689057,1767779460367,-500.0,0.00028219,2]
[400689059,1767779460376,-500.0,0.00028219,2]
[400689061,1767779460387,-500.0,0.00028219,2]
[400689063,1767779460398,-500.0,0.00028219,2]
[400689065,1767779460408,-500.0,0.00028219,2]
[400689067,1767779460418,-500.0,0.00028219,2]
[400689069,1767779460428,-186.99690557,0.00028219,2]
[400689071,1767779460437,-500.0,0.00028219,2]
[400689073,1767779460447,-927.69,0.00028219,2]
[400689074,1767779460457,-556.73214678,0.00028219,2]
[400689076,1767779460467,-4613.91,0.00028219,2]
[400689078,1767779460477,-500.0,0.00028219,2]
[400689080,1767779460488,-615.69390191,0.00028219,2]
[400689082,1767779460498,-500.0,0.00028219,2]
[400689084,1767779460508,-500.0,0.00028219,2]
[400689086,1767779460518,-500.0,0.00028219,2]
[400689088,1767779460529,-500.0,0.00028219,2]
[400689090,1767779460539,-588.39283623,0.00028219,2]
[400689092,1767779460548,-500.0,0.00028219,2]
[400689094,1767779460559,-500.0,0.00028219,2]
[400689096,1767779460569,-500.0,0.00028219,2]
[400689098,1767779460580,-231.925611,0.00028219,2]
[400689099,1767779460596,-500.0,0.00028219,2]
[400689100,1767779460606,-594.26062475,0.00028219,2]
[400689101,1767779460617,-334.58364315,0.00028219,2]
[400689102,1767779460627,-534.78953106,0.00028219,2]
[400689103,1767779460638,-2787.6,0.00028219,2]
[400689104,1767779460650,-500.0,0.00028219,2]
[400689105,1767779460660,-201.87565185,0.00028219,2]
[400689106,1767779460670,-717.62,0.00028219,2]
[400689107,1767779460680,-500.0,0.00028219,2]
[400689108,1767779460691,-661.34,0.00028219,2]
[400689109,1767779460701,-572.81538707,0.00028219,2]
[400689110,1767779460711,-500.0,0.00028219,2]
[400689111,1767779460722,-208.54613436,0.00028219,2]
[400689112,1767779460731,-218.66129606,0.00028219,2]
[400689113,1767779460741,-500.0,0.00028219,2]
[400689114,1767779460751,-500.0,0.00028219,2]
[400689115,1767779460761,-500.0,0.00028219,2]
[400689116,1767779460771,-500.0,0.00028219,2]
[400689117,1767779460781,-500.0,0.00028219,2]
[400689118,1767779460790,-500.0,0.00028219,2]
[400689120,1767779460800,-397.60413058,0.00028219,2]
[400689122,1767779460810,-500.0,0.00028219,2]
[400689124,1767779460819,-500.0,0.00028219,2]
[400689126,1767779460829,-500.0,0.00028219,2]
[400689128,1767779460839,-500.0,0.00028219,2]
[400689130,1767779460848,-500.0,0.00028219,2]
[400689131,1767779460858,-500.0,0.00028219,2]
[400689133,1767779460868,-500.0,0.00028219,2]
[400689135,1767779460877,-583.04293387,0.00028219,2]
[400689137,1767779460887,-505.05,0.00028219,2]
[400689139,1767779460897,-500.0,0.00028219,2]
[400689141,1767779460907,-557.5159063,0.00028219,2]
[400689143,1767779460917,-500.0,0.00028219,2]
[400689145,1767779460927,-500.0,0.00028219,2]
[400689147,1767779460936,-496.84809073,0.00028219,2]
[400689149,1767779460946,-500.0,0.00028219,2]
[400689151,1767779460957,-500.0,0.00028219,2]
[400689153,1767779460969,-500.0,0.00028219,2]
[400689155,1767779460979,-500.0,0.00028219,2]
[400689157,1767779460989,-1076.6,0.00028219,2]
[400689159,1767779460999,-3024.23,0.00028219,2]
[400689160,1767779461009,-301.53487192,0.00028219,2]
[400689162,1767779461019,-500.0,0.00028219,2]
[400689164,1767779461029,-500.0,0.00028219,2]
[400689166,1767779461038,-500.0,0.00028219,2]
[400689168,1767779461050,-375.44951632,0.00028219,2]
[400689170,1767779461060,-500.0,0.00028219,2]
[400689172,1767779461069,-500.0,0.00028219,2]
[400689174,1767779461079,-291.59561338,0.00028219,2]
[400689176,1767779461089,-853.68,0.00028219,2]
[400689178,1767779461098,-500.0,0.00028219,2]
[400689180,1767779461109,-186.63222322,0.00028219,2]
[400689182,1767779461119,-571.66610557,0.00028219,2]
[400689184,1767779461128,-500.0,0.00028219,2]
[400689185,1767779461137,-500.0,0.00028219,2]
[400689187,1767779461148,-500.0,0.00028219,2]
[400689189,1767779461157,-500.0,0.00028219,2]
[400689191,1767779461168,-500.0,0.00028219,2]
[400689193,1767779461178,-500.0,0.00028219,2]
[400689195,1767779461188,-297.98489673,0.00028219,2]
[400689197,1767779461198,-493.12915307,0.00028219,2]
[400689199,1767779461209,-387.59341102,0.00028219,2]
[400689201,1767779461219,-333.7260999,0.00028219,2]
[400689203,1767779461229,-500.0,0.00028219,2]
[400689205,1767779461238,-576.98465831,0.00028219,2]
[400689207,1767779461247,-500.0,0.00028219,2]
[400689209,1767779461257,-258.21390924,0.00028219,2]
[400689211,1767779461267,-500.0,0.00028219,2]
[400689213,1767779461277,-500.0,0.00028219,2]
[400689214,1767779461287,-500.0,0.00028219,2]
[400689216,1767779461297,-500.0,0.00028219,2]
[400689218,1767779461307,-500.0,0.00028219,2]
[400689220,1767779461318,-500.0,0.00028219,2]
[400689222,1767779461328,-500.0,0.00028219,2]
[400689224,1767779461338,-500.0,0.00028219,2]
[400689226,1767779461347,-551.08967191,0.00028219,2]
[400689228,1767779461356,-500.0,0.00028219,2]
[400689230,1767779461366,-500.0,0.00028219,2]
[400689232,1767779461376,-500.0,0.00028219,2]
[400689234,1767779461387,-523.36920545,0.00028219,2]
[400689236,1767779461398,-550.76751835,0.00028219,2]
[400689238,1767779461408,-500.0,0.00028219,2]
[400689239,1767779461419,-500.0,0.00028219,2]
[400689241,1767779461430,-500.0,0.00028219,2]
[400689243,1767779461439,-690.11,0.00028219,2]
[400689245,1767779461449,-836.4,0.00028219,2]
[400689247,1767779461459,-500.0,0.00028219,2]
[400689249,1767779461468,-500.0,0.00028219,2]
[400689251,1767779461479,-500.0,0.00028219,2]
[400689253,1767779461488,-500.0,0.00028219,2]
[400689255,1767779461497,-500.0,0.00028219,2]
[400689256,1767779461507,-500.0,0.00028219,2]
[400689258,1767779461517,-500.0,0.00028219,2]
[400689260,1767779461527,-500.0,0.00028219,2]
[400689262,1767779461537,-500.0,0.00028219,2]
[400689264,1767779461546,-500.0,0.00028219,2]
[400689266,1767779461555,-500.0,0.00028219,2]
[400689268,1767779461565,-500.0,0.00028219,2]
[400689270,1767779461575,-500.0,0.00028219,2]
[400689272,1767779461585,-500.0,0.00028219,2]
[400689274,1767779461594,-500.0,0.00028219,2]
[400689275,1767779461603,-500.0,0.00028219,2]
[400689277,1767779461614,-500.0,0.00028219,2]
[400689279,1767779461624,-500.0,0.00028219,2]
[400689281,1767779461634,-500.0,0.00028219,2]
[400689283,1767779461644,-500.0,0.00028219,2]
[400689285,1767779461656,-500.0,0.00028219,2]
[400689287,1767779461666,-500.0,0.00028219,2]
[400689289,1767779461676,-500.0,0.00028219,2]
[400689291,1767779461686,-500.0,0.00028219,2]
[400689293,1767779461695,-500.0,0.00028219,2]
[400689295,1767779461705,-3088.57,0.00028219,2]
[400689297,1767779461714,-511.35973746,0.00028219,2]
[400689299,1767779461724,-500.0,0.00028219,2]
[400689301,1767779461734,-500.0,0.00028219,2]
[400689303,1767779461744,-372.6673866,0.00028219,2]
[400689304,1767779461753,-500.0,0.00028219,2]
[400689306,1767779461763,-500.0,0.00028219,2]
[400689325,1767779461958,-500.0,0.00028219,2]
[400689327,1767779461969,-797.84,0.00028219,2]
[400689329,1767779461982,-500.0,0.00028219,2]
[400689331,1767779461992,-500.0,0.00028219,2]
[400689333,1767779462001,-500.0,0.00028219,2]
[400689334,1767779462010,-500.0,0.00028219,2]
[400689336,1767779462022,-541.4152828,0.00028219,2]
[400689338,1767779462031,-392.07978129,0.00028219,2]
[400689340,1767779462040,-235.67110295,0.00028219,2]
[400689342,1767779462051,-500.0,0.00028219,2]
[400689344,1767779462060,-500.0,0.00028219,2]
[400689346,1767779462069,-725.03,0.00028219,2]
[400689348,1767779462079,-500.0,0.00028219,2]
[400689350,1767779462089,-500.0,0.00028219,2]
[400689352,1767779462099,-169.0,0.00028219,28]
[400689354,1767779462116,-4679.95158976,0.00028257,5]
[400689356,1767779462126,-7722.88708548,0.00028257,5]
[400689358,1767779462136,-766.62797433,0.00028393,2]
[400689360,1767779462146,-6225.69980601,0.00028395,2]
[400689362,1767779462156,-178.62325537,0.00028413,17]
[400689364,1767779462166,-1300.0,0.00028425,7]
[400689366,1767779462176,-2401.52341827,0.00028458,2]
[400689368,1767779462187,-500.0,0.00028493,2]
[400689370,1767779462196,-500.0,0.00028493,2]
[400689371,1767779462206,-500.0,0.00028493,2]
[400689373,1767779462215,-500.0,0.00028493,2]
[400689375,1767779462225,-500.0,0.00028493,2]
[400689377,1767779462234,-500.0,0.00028493,2]
[400689379,1767779462244,-500.0,0.00028493,2]
[400689381,1767779462253,-500.0,0.00028493,2]
[400689383,1767779462262,-500.0,0.00028493,2]
[400689385,1767779462272,-410.65012671,0.00028493,2]
[400689387,1767779462282,-500.0,0.00028493,2]
[400689388,1767779462292,-500.0,0.00028493,2]
[400689390,1767779462301,-500.0,0.00028493,2]
[400689392,1767779462311,-500.0,0.00028493,2]
[400689394,1767779462320,-151.0,0.00028493,7]
[400689396,1767779462330,-1000.0,0.00028493,2]
[400689398,1767779462340,-151.0,0.00028493,7]
[400689400,1767779462349,-564.56926368,0.00028493,2]
[400689402,1767779462359,-587.55413646,0.00028493,2]
[400689404,1767779462368,-500.0,0.00028493,2]
[400689406,1767779462377,-500.0,0.00028493,2]
[400689407,1767779462387,-703.59594955,0.00028493,2]
[400689409,1767779462396,-500.0,0.00028493,2]
[400689411,1767779462406,-2811.56941441,0.00028493,2]
[400689413,1767779462415,-453.32692781,0.00028493,2]
[400689415,1767779462425,-798.94,0.00028493,2]
[400689417,1767779462436,-500.0,0.00028493,2]
[400689419,1767779462445,-500.0,0.00028493,2]